[Event "World Junior U20 Girls 2018"]
[Site "Gebze"]
[Date "2018.09.11"]
[Round "7"]
[White "Kanakova, Natalie"]
[Black "Nass, Sara"]
[Result "1-0"]
[ECO "A29"]
[WhiteElo "2201"]
[BlackElo "1888"]
[Annotator "ChessBase"]
[PlyCount "65"]
[EventDate "2018.09.05"]
[EventType "swiss"]
[EventCountry "TUR"]
[SourceTitle "playchess.com"]
[Source "ChessBase"]
[SourceQuality "1"]
[TimeControl "40/5400+30:1800+30"]

1. c4 {[%emt 0:00:30]} Nf6 {[%emt 0:00:30]} 2. Nc3 {[%emt 0:00:30]} e5 {[%emt 0:00:00]} 3. Nf3 {[%emt 0:00:30]} Nc6 {[%emt 0:00:00]} 4. g3 {[%emt 0:00:30]} d5 {[%emt 0:00:30]} 5. cxd5 {[%emt 0:00:30]} Nxd5 {[%emt 0:00:00]} 6. Bg2 {[%emt 0:00:30]} Bc5 {[%emt 0:00:00]} 7. O-O {[%emt 0:00:30]} O-O {[%emt 0:05:30]} 8. d3 {[%emt 0:03:30]} h6 {[%emt 0:13:30]} 9. Bd2 {[%emt 0:11:30]} Be6 {[%emt 0:02:30]} 10. Rc1 {[%emt 0:00:30]} Bb6 {[%emt 0:01:30]} 11. a3 {[%emt 0:04:30]} Re8 {[%emt 0:03:30]} 12. Na4 {[%emt 0:02:30]} Qd7 {[%emt 0:01:30]} 13. Nc5 {[%emt 0:00:30]} Bxc5 {[%emt 0:01:30]} 14. Rxc5 {[%emt 0:00:30]} f6 {[%emt 0:04:30]} 15. b4 {[%emt 0:05:30]} a6 {[%emt 0:01:30]} 16. Be3 {[%emt 0:04:30]} Nxe3 {[%emt 0:04:30]} 17. fxe3 {[%emt 0:00:00]} Bh3 {[%emt 0:13:30]} 18. Bxh3 {[%emt 0:10:00]} Qxh3 {[%emt 0:00:00]} 19. Nh4 {[%emt 0:01:30]} Qd7 {[%emt 0:02:00]} 20. Kh1 {[%emt 0:06:30]} b6 {[%emt 0:16:30]} 21. Rc4 {[%emt 0:01:30]} Ne7 {[%emt 0:03:30]} 22. e4 {[%emt 0:04:30]} a5 {[%emt 0:01:30]} 23. Qb3 {[%emt 0:05:30]} Qe6 {[%emt 0:06:43]} 24. b5 {[%emt 0:00:30]} Rac8 {[%emt 0:01:00]} 25. Rb1 {[%emt 0:09:30]} Kh7 {[%emt 0:04:46]} 26. Qc3 {[%emt 0:00:30]} f5 {[%emt 0:05:50]} 27. Kg2 {[%emt 0:07:51]} fxe4 {[%emt 0:02:38]} 28. Rxe4 {[%emt 0:01:20]} Nd5 {[%emt 0:00:35]} 29. Qc4 {[%emt 0:05:04]} c5 {[%emt 0:04:08]} 30. Nf3 {[%emt 0:00:37]} Qd6 {[%emt 0:00:31]} 31. Rf1 {[%emt 0:01:44]} Nf6 {[%emt 0:00:00]} 32. Rh4 {[%emt 0:00:22]} Qe6 {[%emt 0:01:07]} 33. Ng5+ {[%emt 0:00:10]} 1-0

[Event "World Junior U20 Girls 2018"]
[Site "Gebze"]
[Date "2018.09.11"]
[Round "7"]
[White "Georgescu, Lena"]
[Black "Lingur, Zalina"]
[Result "1/2-1/2"]
[ECO "B23"]
[WhiteElo "2195"]
[BlackElo "2061"]
[Annotator "ChessBase"]
[PlyCount "83"]
[EventDate "2018.09.05"]
[EventType "swiss"]
[EventCountry "TUR"]
[SourceTitle "playchess.com"]
[Source "ChessBase"]
[SourceQuality "1"]
[TimeControl "40/5400+30:1800+30"]

1. e4 {[%emt 0:00:30]} c5 {[%emt 0:00:30]} 2. Nc3 {[%emt 0:00:00]} a6 {[%emt 0:00:00]} 3. Nge2 {[%emt 0:00:00]} d6 {[%emt 0:01:00]} 4. g3 {[%emt 0:00:30]} g6 {[%emt 0:00:30]} 5. Bg2 {[%emt 0:00:30]} Bg7 {[%emt 0:00:00]} 6. d4 {[%emt 0:00:30]} cxd4 {[%emt 0:02:00]} 7. Nxd4 {[%emt 0:00:30]} Nc6 {[%emt 0:04:30]} 8. Nxc6 {[%emt 0:10:30]} bxc6 {[%emt 0:00:30]} 9. O-O {[%emt 0:00:30]} Qc7 {[%emt 0:15:30]} 10. Be3 {[%emt 0:06:30]} Nf6 {[%emt 0:05:30]} 11. h3 {[%emt 0:00:30]} O-O {[%emt 0:05:30]} 12. Qd2 {[%emt 0:21:30]} Rd8 {[%emt 0:23:30]} 13. Rad1 {[%emt 0:17:30]} Nd7 {[%emt 0:11:30]} 14. b3 {[%emt 0:02:30]} a5 {[%emt 0:08:24]} 15. Na4 {[%emt 0:02:30]} Ba6 {[%emt 0:00:49]} 16. c4 {[%emt 0:02:30]} Nc5 {[%emt 0:05:31]} 17. Bxc5 {[%emt 0:04:30]} dxc5 {[%emt 0:02:25]} 18. Qg5 {[%emt 0:00:00]} Bd4 {[%emt 0:00:15]} 19. Nxc5 {[%emt 0:02:00]} Bc8 {[%emt 0:00:31]} 20. Na4 {[%emt 0:05:30]} f6 {[%emt 0:04:14]} 21. Qh6 {[%emt 0:04:31]} e5 {[%emt 0:01:16]} 22. c5 {[%emt 0:02:38]} Ba6 {[%emt 0:03:48]} 23. Rfe1 {[%emt 0:00:07]} Bb5 {[%emt 0:01:19]} 24. Qc1 {[%emt 0:03:56]} Qe7 {[%emt 0:00:55]} 25. Bf1 {[%emt 0:00:59]} Bxa4 {[%emt 0:00:52]} 26. bxa4 {[%emt 0:00:18]} Rab8 {[%emt 0:01:03]} 27. Bc4+ {[%emt 0:01:27]} Kg7 {[%emt 0:00:03]} 28. Bb3 {[%emt 0:00:03]} Bxc5 {[%emt 0:01:26]} 29. Rxd8 {[%emt 0:02:12]} Rxd8 {[%emt 0:00:16]} 30. Rd1 {[%emt 0:00:00]} Rxd1+ {[%emt 0:00:42]} 31. Qxd1 {[%emt 0:00:02]} Qd6 {[%emt 0:00:32]} 32. Qxd6 {[%emt 0:00:37]} Bxd6 {[%emt 0:00:01]} 33. Kf1 {[%emt 0:00:00]} Bc5 {[%emt 0:00:36]} 34. Ke2 {[%emt 0:02:28]} Bd4 {[%emt 0:00:46]} 35. Be6 {[%emt 0:02:37]} h6 {[%emt 0:00:24]} 36. Bd7 {[%emt 0:00:28]} c5 {[%emt 0:00:14]} 37. Be6 {[%emt 0:00:00]} Kf8 {[%emt 0:00:16]} 38. f3 {[%emt 0:01:20]} Ke7 {[%emt 0:00:14]} 39. Bg8 {[%emt 0:01:51]} f5 {[%emt 0:00:53]} 40. g4 {[%emt 0:00:00]} fxg4 {[%emt 0:00:00]} 41. fxg4 {[%emt 0:04:56]} Kf6 {[%emt 0:05:15]} 42. Kf3 {[%emt 0:00:30]} 1/2-1/2

[Event "World Junior U20 Girls 2018"]
[Site "Gebze"]
[Date "2018.09.11"]
[Round "7"]
[White "Urh, Zala"]
[Black "Kubicka, Anna"]
[Result "0-1"]
[ECO "A57"]
[WhiteElo "2128"]
[BlackElo "2204"]
[Annotator "ChessBase"]
[PlyCount "168"]
[EventDate "2018.09.05"]
[EventType "swiss"]
[EventCountry "TUR"]
[SourceTitle "playchess.com"]
[Source "ChessBase"]
[SourceQuality "1"]
[TimeControl "40/5400+30:1800+30"]

1. d4 {[%emt 0:00:30]} Nf6 {[%emt 0:00:30]} 2. c4 {[%emt 0:00:30]} c5 {[%emt 0:00:30]} 3. d5 {[%emt 0:00:00]} b5 {[%emt 0:00:30]} 4. cxb5 {[%emt 0:00:00]} a6 {[%emt 0:00:00]} 5. f3 {[%emt 0:00:30]} g6 {[%emt 0:00:00]} 6. e4 {[%emt 0:00:30]} Bg7 {[%emt 0:00:30]} 7. Be3 {[%emt 0:10:30]} d6 {[%emt 0:02:30]} 8. bxa6 {[%emt 0:01:30]} O-O {[%emt 0:00:30]} 9. Nd2 {[%emt 0:03:30]} Qa5 {[%emt 0:04:30]} 10. Ne2 {[%emt 0:01:30]} Bxa6 {[%emt 0:00:30]} 11. Nc3 {[%emt 0:01:30]} Bxf1 {[%emt 0:00:30]} 12. Rxf1 {[%emt 0:11:30]} Nfd7 {[%emt 0:05:30]} 13. Qc2 {[%emt 0:01:30]} Na6 {[%emt 0:12:30]} 14. Nc4 {[%emt 0:05:30]} Qb4 {[%emt 0:10:30]} 15. Qe2 {[%emt 0:03:30]} Bxc3+ {[%emt 0:04:30]} 16. bxc3 {[%emt 0:00:30]} Qxc3+ {[%emt 0:00:30]} 17. Kf2 {[%emt 0:00:00]} Nb4 {[%emt 0:00:30]} 18. Rfd1 {[%emt 0:01:00]} Ra4 {[%emt 0:06:30]} 19. Rac1 {[%emt 0:06:30]} Nxa2 {[%emt 0:07:30]} 20. Rc2 {[%emt 0:24:30]} Qb4 {[%emt 0:14:30]} 21. Rxa2 {[%emt 0:04:30]} Qxc4 {[%emt 0:00:30]} 22. Qxc4 {[%emt 0:00:00]} Rxc4 {[%emt 0:00:00]} 23. Ra7 {[%emt 0:00:00]} Rd8 {[%emt 0:06:00]} 24. Bd2 {[%emt 0:02:42]} Kf8 {[%emt 0:02:39]} 25. Ba5 {[%emt 0:04:47]} Ra4 {[%emt 0:00:30]} 26. Rb1 {[%emt 0:00:09]} Ne5 {[%emt 0:03:25]} 27. Rbb7 {[%emt 0:04:59]} Ra2+ {[%emt 0:02:25]} 28. Kg3 {[%emt 0:02:38]} Re8 {[%emt 0:00:36]} 29. Bc3 {[%emt 0:00:09]} Rxa7 {[%emt 0:00:28]} 30. Rxa7 {[%emt 0:00:01]} f6 {[%emt 0:04:13]} 31. f4 {[%emt 0:01:00]} Nd3 {[%emt 0:01:04]} 32. Kf3 {[%emt 0:02:33]} Rb8 {[%emt 0:03:14]} 33. Ke3 {[%emt 0:01:12]} Nb2 {[%emt 0:03:03]} 34. e5 {[%emt 0:02:16]} Nd1+ {[%emt 0:02:09]} 35. Kd2 {[%emt 0:00:30]} Nxc3 {[%emt 0:00:30]} 36. Kxc3 {[%emt 0:00:00]} fxe5 {[%emt 0:00:00]} 37. fxe5 {[%emt 0:00:00]} dxe5 {[%emt 0:00:13]} 38. Ra5 {[%emt 0:02:55]} Rb1 {[%emt 0:00:14]} 39. Ra2 {[%emt 0:00:10]} Rc1+ {[%emt 0:02:42]} 40. Kd3 {[%emt 0:00:00]} c4+ {[%emt 0:00:00]} 41. Kd2 {[%emt 0:02:59]} Rf1 {[%emt 0:02:35]} 42. Kc3 {[%emt 0:01:30]} Rc1+ {[%emt 0:05:30]} 43. Kd2 {[%emt 0:00:30]} Rh1 {[%emt 0:04:30]} 44. h3 {[%emt 0:00:30]} Ke8 {[%emt 0:00:30]} 45. Kc3 {[%emt 0:03:30]} Kd7 {[%emt 0:00:30]} 46. Kxc4 {[%emt 0:05:30]} Rc1+ {[%emt 0:00:30]} 47. Kd3 {[%emt 0:00:30]} Kd6 {[%emt 0:00:30]} 48. Ke4 {[%emt 0:01:30]} Re1+ {[%emt 0:00:30]} 49. Kf3 {[%emt 0:00:30]} Kxd5 {[%emt 0:00:30]} 50. Rd2+ {[%emt 0:02:30]} Ke6 {[%emt 0:00:00]} 51. Kf2 {[%emt 0:01:35]} Rc1 {[%emt 0:00:00]} 52. Ke3 {[%emt 0:00:44]} Rc3+ {[%emt 0:00:30]} 53. Ke4 {[%emt 0:00:00]} h5 {[%emt 0:00:30]} 54. Ra2 {[%emt 0:01:17]} Rc4+ {[%emt 0:00:30]} 55. Kd3 {[%emt 0:01:37]} Rb4 {[%emt 0:01:30]} 56. Ke3 {[%emt 0:03:32]} Kf5 {[%emt 0:00:30]} 57. Rf2+ {[%emt 0:00:58]} Rf4 {[%emt 0:00:30]} 58. Ra2 {[%emt 0:00:41]} Re4+ {[%emt 0:00:00]} 59. Kf3 {[%emt 0:01:52]} Rb4 {[%emt 0:00:00]} 60. Ra7 {[%emt 0:02:13]} Rb3+ {[%emt 0:00:30]} 61. Kf2 {[%emt 0:00:09]} Rb2+ {[%emt 0:00:30]} 62. Kf1 {[%emt 0:00:20]} e6 {[%emt 0:01:30]} 63. Rf7+ {[%emt 0:04:02]} Kg5 {[%emt 0:01:30]} 64. Re7 {[%emt 0:00:23]} Kf6 {[%emt 0:00:30]} 65. Re8 {[%emt 0:00:09]} g5 {[%emt 0:01:30]} 66. Rf8+ {[%emt 0:01:16]} Kg6 {[%emt 0:00:30]} 67. Rf3 {[%emt 0:00:00]} e4 {[%emt 0:01:07]} 68. Rf8 {[%emt 0:00:10]} e3 {[%emt 0:01:41]} 69. Ra8 {[%emt 0:00:15]} Kf5 {[%emt 0:00:36]} 70. Ra4 {[%emt 0:01:05]} h4 {[%emt 0:00:40]} 71. Rc4 {[%emt 0:00:23]} e5 {[%emt 0:00:43]} 72. Ra4 {[%emt 0:00:36]} Rf2+ {[%emt 0:00:42]} 73. Kg1 {[%emt 0:00:30]} Rd2 {[%emt 0:00:00]} 74. Kf1 {[%emt 0:00:07]} Rd4 {[%emt 0:00:00]} 75. Ra3 {[%emt 0:00:05]} Kf4 {[%emt 0:00:26]} 76. Rb3 {[%emt 0:00:41]} Rd5 {[%emt 0:01:04]} 77. Ra3 {[%emt 0:00:10]} e4 {[%emt 0:00:04]} 78. Ke2 {[%emt 0:01:12]} Rd2+ {[%emt 0:00:30]} 79. Kf1 {[%emt 0:00:30]} Rd3 {[%emt 0:00:00]} 80. Ra5 {[%emt 0:00:00]} Rd1+ {[%emt 0:00:00]} 81. Ke2 {[%emt 0:00:00]} Rd2+ {[%emt 0:00:20]} 82. Kf1 {[%emt 0:00:00]} e2+ {[%emt 0:00:26]} 83. Kf2 {[%emt 0:00:30]} e1=Q+ {[%emt 0:00:30]} 84. Kxe1 {[%emt 0:00:00]} Rxg2 {[%emt 0:00:11]} 0-1

[Event "World Junior U20 Girls 2018"]
[Site "Gebze"]
[Date "2018.09.11"]
[Round "7"]
[White "Santeramo, Alessia"]
[Black "Kocyigit, Buse Naz"]
[Result "0-1"]
[ECO "C12"]
[WhiteElo "2124"]
[BlackElo "1944"]
[Annotator "ChessBase"]
[PlyCount "156"]
[EventDate "2018.09.05"]
[EventType "swiss"]
[EventCountry "TUR"]
[SourceTitle "playchess.com"]
[Source "ChessBase"]
[SourceQuality "1"]
[TimeControl "40/5400+30:1800+30"]

1. e4 {[%emt 0:00:30]} e6 {[%emt 0:00:30]} 2. d4 {[%emt 0:00:30]} d5 {[%emt 0:00:30]} 3. Nc3 {[%emt 0:00:30]} Nf6 {[%emt 0:00:00]} 4. Bg5 {[%emt 0:00:00]} Bb4 {[%emt 0:00:00]} 5. e5 {[%emt 0:00:00]} h6 {[%emt 0:00:00]} 6. Bc1 {[%emt 0:00:00]} Ne4 {[%emt 0:00:00]} 7. Qg4 {[%emt 0:00:00]} g5 {[%emt 0:02:30]} 8. Nge2 {[%emt 0:00:30]} h5 {[%emt 0:01:30]} 9. Qh3 {[%emt 0:04:30]} c5 {[%emt 0:04:30]} 10. a3 {[%emt 0:00:30]} Ba5 {[%emt 0:09:30]} 11. b4 {[%emt 0:12:30]} cxb4 {[%emt 0:01:30]} 12. Nxe4 {[%emt 0:00:30]} dxe4 {[%emt 0:00:30]} 13. axb4 {[%emt 0:00:30]} Bxb4+ {[%emt 0:00:30]} 14. c3 {[%emt 0:00:00]} Be7 {[%emt 0:01:30]} 15. Qe3 {[%emt 0:01:00]} Bd7 {[%emt 0:01:30]} 16. Ng3 {[%emt 0:02:30]} Bc6 {[%emt 0:03:30]} 17. Nxe4 {[%emt 0:01:30]} Bxe4 {[%emt 0:00:30]} 18. Qxe4 {[%emt 0:00:30]} Qc7 {[%emt 0:00:30]} 19. Bb5+ {[%emt 0:01:30]} Nd7 {[%emt 0:02:30]} 20. O-O {[%emt 0:05:30]} a6 {[%emt 0:05:30]} 21. Bd2 {[%emt 0:05:30]} O-O-O {[%emt 0:11:30]} 22. Bd3 {[%emt 0:05:30]} h4 {[%emt 0:04:30]} 23. Rfb1 {[%emt 0:01:30]} Nb8 {[%emt 0:03:30]} 24. c4 {[%emt 0:09:30]} h3 {[%emt 0:00:30]} 25. Ba5 {[%emt 0:12:30]} Qc6 {[%emt 0:04:30]} 26. Bxd8 {[%emt 0:01:30]} Rxd8 {[%emt 0:00:30]} 27. Qxc6+ {[%emt 0:00:30]} Nxc6 {[%emt 0:00:30]} 28. Be4 {[%emt 0:00:30]} Nb4 {[%emt 0:03:30]} 29. Rd1 {[%emt 0:01:30]} f5 {[%emt 0:02:30]} 30. exf6 {[%emt 0:04:30]} Bxf6 {[%emt 0:00:30]} 31. Ra4 {[%emt 0:00:30]} Be7 {[%emt 0:03:30]} 32. gxh3 {[%emt 0:01:30]} b6 {[%emt 0:01:30]} 33. Bf3 {[%emt 0:03:30]} a5 {[%emt 0:02:30]} 34. c5 {[%emt 0:03:30]} Kc7 {[%emt 0:01:30]} 35. cxb6+ {[%emt 0:00:30]} Kxb6 {[%emt 0:00:00]} 36. Rda1 {[%emt 0:00:00]} Rxd4 {[%emt 0:01:00]} 37. Rxa5 {[%emt 0:00:00]} Bc5 {[%emt 0:01:30]} 38. Be2 {[%emt 0:06:50]} Rd2 {[%emt 0:06:30]} 39. Rb5+ {[%emt 0:00:12]} Kc6 {[%emt 0:00:30]} 40. Rc1 {[%emt 0:00:00]} Rc2 {[%emt 0:00:00]} 41. Rxc2 {[%emt 0:02:58]} Nxc2 {[%emt 0:02:00]} 42. Rb8 {[%emt 0:00:30]} Nd4 {[%emt 0:02:30]} 43. Bg4 {[%emt 0:01:30]} Kd5 {[%emt 0:01:30]} 44. Kg2 {[%emt 0:04:30]} Be7 {[%emt 0:08:30]} 45. Rb7 {[%emt 0:00:30]} Bf6 {[%emt 0:00:30]} 46. Rf7 {[%emt 0:03:30]} Ke5 {[%emt 0:04:30]} 47. Kf1 {[%emt 0:01:30]} Bd8 {[%emt 0:04:30]} 48. Rf8 {[%emt 0:01:30]} Be7 {[%emt 0:00:30]} 49. Rf7 {[%emt 0:00:30]} Bd8 {[%emt 0:00:30]} 50. Ke1 {[%emt 0:00:30]} Ke4 {[%emt 0:04:30]} 51. Ra7 {[%emt 0:04:30]} Bf6 {[%emt 0:05:30]} 52. Ra6 {[%emt 0:01:30]} Kd5 {[%emt 0:00:30]} 53. Kd2 {[%emt 0:00:30]} Nb3+ {[%emt 0:03:30]} 54. Ke2 {[%emt 0:01:30]} Nc5 {[%emt 0:00:30]} 55. Kf3 {[%emt 0:02:30]} Nxa6 {[%emt 0:00:30]} 56. Kg2 {[%emt 0:01:30]} Nc5 {[%emt 0:01:32]} 57. f3 {[%emt 0:02:30]} Nd3 {[%emt 0:02:21]} 58. Kg3 {[%emt 0:02:30]} Be5+ {[%emt 0:00:54]} 59. Kg2 {[%emt 0:00:30]} Nf4+ {[%emt 0:00:00]} 60. Kg3 {[%emt 0:02:30]} Ng6+ {[%emt 0:00:05]} 61. Kg2 {[%emt 0:00:30]} Nh4+ {[%emt 0:00:30]} 62. Kh1 {[%emt 0:00:30]} Bf4 {[%emt 0:00:17]} 63. Kg1 {[%emt 0:00:30]} Be3+ {[%emt 0:00:59]} 64. Kf1 {[%emt 0:00:30]} Ke5 {[%emt 0:00:33]} 65. Bh5 {[%emt 0:00:30]} Kf4 {[%emt 0:00:40]} 66. Ke2 {[%emt 0:00:30]} Bg1 {[%emt 0:00:19]} 67. Bg4 {[%emt 0:00:30]} e5 {[%emt 0:00:13]} 68. Bh5 {[%emt 0:00:00]} Bxh2 {[%emt 0:00:33]} 69. Bg4 {[%emt 0:00:00]} Bg1 {[%emt 0:00:14]} 70. Bh5 {[%emt 0:01:30]} Kg3 {[%emt 0:00:28]} 71. Bg4 {[%emt 0:00:30]} Bc5 {[%emt 0:00:09]} 72. Bh5 {[%emt 0:00:00]} Kxh3 {[%emt 0:00:53]} 73. Kd3 {[%emt 0:00:00]} Kg3 {[%emt 0:01:08]} 74. Ke4 {[%emt 0:00:00]} Bd4 {[%emt 0:00:31]} 75. Bg4 {[%emt 0:00:00]} Nxf3 {[%emt 0:05:03]} 76. Bxf3 {[%emt 0:00:30]} g4 {[%emt 0:01:06]} 77. Be2 {[%emt 0:01:30]} Kh3 {[%emt 0:01:08]} 78. Bf1+ {[%emt 0:00:00]} Kh2 {[%emt 0:00:00]} 0-1

[Event "World Junior U20 Girls 2018"]
[Site "Gebze"]
[Date "2018.09.11"]
[Round "7"]
[White "Li, Xinyu"]
[Black "Zairbek kyzy, Begimay"]
[Result "0-1"]
[ECO "D66"]
[WhiteElo "2086"]
[BlackElo "1770"]
[Annotator "NA"]
[PlyCount "142"]
[EventDate "2018.09.05"]
[EventType "swiss"]
[EventCountry "TUR"]
[SourceTitle "playchess.com"]
[Source "ChessBase"]
[SourceQuality "1"]
[TimeControl "40/5400+30:1800+30"]

1. d4 {[%emt 0:00:30]} d5 {[%emt 0:00:30]} 2. c4 {[%emt 0:00:30]} e6 {[%emt 0:00:30]} 3. Nc3 {[%emt 0:00:00]} Nf6 {[%emt 0:00:00]} 4. Nf3 {[%emt 0:00:00]} Be7 {[%emt 0:00:00]} 5. Bg5 {[%emt 0:00:00]} Nbd7 {[%emt 0:00:00]} 6. e3 {[%emt 0:00:00]} c6 {[%emt 0:00:00]} 7. Rc1 {[%emt 0:00:00]} O-O {[%emt 0:00:30]} 8. Bd3 {[%emt 0:00:00]} Re8 {[%emt 0:00:30]} 9. O-O {[%emt 0:00:30]} Nf8 {[%emt 0:02:30]} 10. Qc2 {[%emt 0:03:30]} Ng6 {[%emt 0:04:30]} 11. Rfd1 {[%emt 0:02:30]} dxc4 {[%emt 0:01:30]} 12. Bxc4 {[%emt 0:00:00]} Nd5 {[%emt 0:00:30]} 13. Bxe7 {[%emt 0:01:00]} Qxe7 {[%emt 0:00:30]} 14. a3 {[%emt 0:07:30] D66: Queen's Gambit Declined: Classical: Main Line (7 Rc1 c6 8 Bd3)} Bd7 {[%emt 0:08:30]} 15. Bd3 {[%emt 0:03:30]} Nf8 $146 {[%emt 0:01:30]} ({Predecessor:} 15... Rec8 16. g3 Nf6 17. Na4 b6 18. Rb1 c5 19. dxc5 Bxa4 20. Qxa4 Rxc5 {1-0 (35) Kuligowski,A (2465)-Erlingsson,J (2225) Reykjavik 1982}) 16. Ne4 {[%emt 0:03:30]} Rad8 {[%emt 0:03:30]} 17. Qb3 {[%emt 0:08:30]} Bc8 {[%emt 0:04:30]} 18. Qa4 {[%emt 0:00:30]} a6 {[%emt 0:01:30]} 19. b4 {[%emt 0:00:30]} Nd7 {[%emt 0:01:30]} 20. Nc5 {[%emt 0:00:30]} h6 {[%emt 0:06:30]} 21. Qb3 {[%emt 0:01:30]} N5f6 {[%emt 0:01:30]} 22. e4 {[%emt 0:05:30]} e5 {[%emt 0:02:30]} 23. dxe5 {[%emt 0:16:30]} Nxe5 {[%emt 0:00:30]} 24. Nxe5 {[%emt 0:00:30]} Qxe5 {[%emt 0:00:30]} 25. Bc4 {[%emt 0:00:30]} Qc7 {[%emt 0:03:30]} 26. Rxd8 {[%emt 0:06:30]} Rxd8 {[%emt 0:00:30]} 27. Qe3 {[%emt 0:18:30]} Ng4 {[%emt 0:01:30]} 28. Qg3 {[%emt 0:00:00]} Qxg3 {[%emt 0:01:30]} 29. hxg3 {[%emt 0:00:00]} Rd2 {[%emt 0:00:30]} 30. f3 {[%emt 0:01:30]} Ne3 {[%emt 0:02:30]} 31. Bf1 {[%emt 0:00:30]} Rc2 {[%emt 0:04:30]} 32. Re1 {[%emt 0:03:51]} Rc3 {[%emt 0:00:30]} 33. Bd3 {[%emt 0:00:45]} b6 {[%emt 0:01:30]} 34. Rxe3 {[%emt 0:01:08]} bxc5 {[%emt 0:00:00]} 35. bxc5 {[%emt 0:00:36]} Rxa3 {[%emt 0:00:00]} 36. Kf2 {[%emt 0:01:12]} Rc3 {[%emt 0:01:30]} 37. Be2 {[%emt 0:00:17]} Rxc5 {[%emt 0:03:30]} 38. Rb3 {[%emt 0:01:30]} Kh7 {[%emt 0:01:30]} 39. Rb8 $11 {[%emt 0:00:25]} Be6 {[%emt 0:00:30]} 40. Bxa6 {[%emt 0:00:00]} Rc2+ {[%emt 0:00:00]} 41. Kg1 {[%emt 0:02:16]} c5 {[%emt 0:04:00]} 42. g4 {[%emt 0:02:30]} Kg6 {[%emt 0:02:30]} 43. Kh2 {[%emt 0:01:30]} Kf6 {[%emt 0:00:30]} 44. Kg3 {[%emt 0:00:30]} g5 {[%emt 0:00:00]} 45. Rh8 {[%emt 0:02:30]} Kg7 {[%emt 0:02:00]} 46. Rd8 {[%emt 0:00:30]} c4 {[%emt 0:00:00]} 47. Bc8 {[%emt 0:03:30]} Kf6 {[%emt 0:01:00]} 48. Bxe6 {[%emt 0:00:30]} Kxe6 {[%emt 0:00:30]} 49. Rd5 {[%emt 0:01:30]} c3 {[%emt 0:09:30]} 50. f4 {[%emt 0:03:30]} Rd2 {[%emt 0:00:30]} 51. f5+ {[%emt 0:00:30]} Ke7 {[%emt 0:00:30]} 52. Rc5 {[%emt 0:00:30]} Rd3+ {[%emt 0:00:30]} 53. Kf2 {[%emt 0:01:30]} Kd6 {[%emt 0:00:00]} 54. Rc4 {[%emt 0:00:30]} Ke5 {[%emt 0:01:00]} 55. g3 {[%emt 0:00:30]} f6 {[%emt 0:00:30]} 56. Kg2 {[%emt 0:09:30]} Re3 {[%emt 0:04:30]} 57. Kf2 {[%emt 0:00:30]} Rxe4 {[%emt 0:05:30]} 58. Rxc3 {[%emt 0:00:30]} Rxg4 {[%emt 0:00:00]} 59. Kf3 {[%emt 0:00:00]} Rd4 {[%emt 0:02:00]} 60. g4 {[%emt 0:00:00]} Rf4+ {[%emt 0:04:30]} 61. Kg3 {[%emt 0:00:30]} h5 {[%emt 0:00:30]} 62. gxh5 {[%emt 0:00:00]} Kxf5 {[%emt 0:00:30]} 63. Rc8 {[%emt 0:02:00]} Rg4+ {[%emt 0:00:30]} 64. Kf3 {[%emt 0:00:30]} Rh4 {[%emt 0:00:30]} 65. Rh8 {[%emt 0:00:30]} Rh3+ {[%emt 0:00:30]} 66. Kg2 {[%emt 0:00:30]} Kg4 {[%emt 0:00:30]} 67. h6 {[%emt 0:00:30]} f5 {[%emt 0:00:30]} 68. h7 {[%emt 0:00:30]} f4 {[%emt 0:00:00]} 69. Kf2 {[%emt 0:02:30]} f3 {[%emt 0:00:00]} 70. Ra8 {[%emt 0:07:29]} Rh2+ {[%emt 0:00:30]} 71. Ke3 {[%emt 0:01:01]} Rxh7 {[%emt 0:00:30]} 0-1

[Event "World Junior U20 Girls 2018"]
[Site "Gebze"]
[Date "2018.09.11"]
[Round "7"]
[White "Sankova, Stella"]
[Black "Yorgun, Yaren Naz"]
[Result "1-0"]
[ECO "C10"]
[WhiteElo "2081"]
[BlackElo "1751"]
[Annotator "NA"]
[PlyCount "89"]
[EventDate "2018.09.05"]
[EventType "swiss"]
[EventCountry "TUR"]
[SourceTitle "playchess.com"]
[Source "ChessBase"]
[SourceQuality "1"]
[TimeControl "40/5400+30:1800+30"]

1. e4 {[%emt 0:00:30]} e6 {[%emt 0:00:30]} 2. d4 {[%emt 0:00:30]} d5 {[%emt 0:00:30]} 3. Nc3 {[%emt 0:00:30]} dxe4 {[%emt 0:00:00]} 4. Nxe4 {[%emt 0:00:00]} Nd7 {[%emt 0:00:00]} 5. Nf3 {[%emt 0:01:00]} Ngf6 {[%emt 0:00:00]} 6. Bd3 {[%emt 0:01:30]} Be7 {[%emt 0:03:00]} 7. c3 {[%emt 0:00:30]} O-O {[%emt 0:01:30]} 8. Qe2 {[%emt 0:05:30] C10: French with 3 Nc3: Unusual Black 3rd moves and 3...dxe4} c5 {[%emt 0:04:30]} (8... b6 9. g4 Bb7 10. g5 Nxe4 11. Bxe4 Bxe4 12. Qxe4 c5 {½-½ (12) Bruedigam,M (2408)-Stupak,K (2558) Police 2016}) 9. Bg5 {[%emt 0:03:30]} cxd4 {[%emt 0:08:30]} 10. Nxd4 {[%emt 0:00:30]} Ne5 {[%emt 0:23:30]} 11. Bc2 $146 {[%emt 0:01:30]} ({Predecessor:} 11. Nxf6+ Bxf6 12. Bxf6 Nxd3+ 13. Qxd3 Qxf6 14. O-O e5 {½-½ (15) Gerencer,J (2143)-Tamas,G (2148) Hungary 2007}) 11... Nxe4 {[%emt 0:02:30]} 12. Qxe4 {[%emt 0:01:30]} Ng6 {[%emt 0:03:30]} 13. Bxe7 {[%emt 0:11:30]} Qxe7 {[%emt 0:00:30]} 14. h4 {[%emt 0:08:30]} f5 {[%emt 0:02:30]} 15. Qf3 {[%emt 0:01:30]} Qf6 {[%emt 0:13:30]} 16. O-O-O {[%emt 0:04:30]} e5 {[%emt 0:04:30]} 17. Bb3+ {[%emt 0:00:30]} Kh8 {[%emt 0:00:30]} 18. Nb5 {[%emt 0:00:30]} e4 {[%emt 0:00:30]} 19. Qe3 {[%emt 0:00:30]} Ne5 {[%emt 0:11:12]} 20. Nc7 {[%emt 0:10:30]} Rb8 {[%emt 0:03:01]} 21. Qxa7 {[%emt 0:01:30]} Bd7 {[%emt 0:01:36]} 22. Nd5 {[%emt 0:02:30]} Qh6+ $16 {[%emt 0:01:53]} 23. Kb1 {[%emt 0:00:30]} Nd3 {[%emt 0:04:02]} 24. Bc2 {[%emt 0:08:30]} Bc6 {[%emt 0:03:07]} 25. Nb4 {[%emt 0:09:30]} Ra8 {[%emt 0:01:43]} 26. Qb6 {[%emt 0:01:30]} Nxb4 {[%emt 0:02:34]} 27. Qxb4 {[%emt 0:00:30]} Qf4 {[%emt 0:00:24]} 28. Qd4 {[%emt 0:04:30]} Qc7 {[%emt 0:01:10]} 29. h5 {[%emt 0:08:15]} Rfd8 {[%emt 0:00:54]} 30. Qb4 {[%emt 0:00:12]} h6 {[%emt 0:01:05]} 31. Bb3 {[%emt 0:02:14]} Rxd1+ {[%emt 0:00:43]} 32. Rxd1 {[%emt 0:01:58]} Rd8 {[%emt 0:00:08]} 33. Rd4 {[%emt 0:01:42]} f4 {[%emt 0:01:27]} 34. a3 {[%emt 0:03:33]} e3 {[%emt 0:00:53]} 35. Rxf4 {[%emt 0:02:56]} Qb8 {[%emt 0:01:06]} 36. fxe3 {[%emt 0:00:26]} Bxg2 {[%emt 0:00:18]} 37. Qe7 {[%emt 0:01:35]} Re8 {[%emt 0:00:28]} 38. Qf7 {[%emt 0:00:55]} Be4+ {[%emt 0:00:27]} 39. Ka2 {[%emt 0:00:47]} Qe5 {[%emt 0:00:31]} 40. Rf1 {[%emt 0:00:00]} Bd3 {[%emt 0:00:00]} 41. Rg1 {[%emt 0:04:57]} Rb8 {[%emt 0:02:48]} 42. Rg2 {[%emt 0:09:18]} Bh7 {[%emt 0:03:30]} 43. Qf4 {[%emt 0:03:46]} Qe8 {[%emt 0:01:30]} 44. Rf2 {[%emt 0:03:37]} Be4 {[%emt 0:03:30]} 45. Bf7 {[%emt 0:01:41]} 1-0